[Event "Titled Tuesday Blitz July 4 Early 2023"]
[White "Kamalidenova, Meruert"]
[Black "Kantor, Gergely"]
[WhiteFideId "13712802"]
[BlackFideId "751499"]
[WhiteElo "2684"]
[BlackElo "2808"]
[Result "0-1"]
[Round "9"]
[TimeControl "180+2"]
[Date "2023.07.04"]
[WhiteClock "0:00:10"]
[BlackClock "0:00:12"]
[Board "30"]

1. e4 {[%clk 0:03:00]}  e6 {[%clk 0:02:58]} 2. d4 {[%clk 0:03:00]}  d5 {[%clk 0:02:59]} 3. e5 {[%clk 0:02:55]}  b6 {[%clk 0:02:59]} 4. Nf3 {[%clk 0:02:52]}  Qd7 {[%clk 0:02:57]} 5. c3 {[%clk 0:02:51]}  Ne7 {[%clk 0:02:57]} 6. Bd3 {[%clk 0:02:51]}  Ba6 {[%clk 0:02:57]} 7. h4 {[%clk 0:02:49]}  Bxd3 {[%clk 0:02:56]} 8. Qxd3 {[%clk 0:02:49]}  c5 {[%clk 0:02:57]} 9. h5 {[%clk 0:02:49]}  h6 {[%clk 0:02:57]} 10. g4 {[%clk 0:02:49]}  Nbc6 {[%clk 0:02:57]} 11. a3 {[%clk 0:02:48]}  c4 {[%clk 0:02:55]} 12. Qe2 {[%clk 0:02:46]}  f6 {[%clk 0:02:53]} 13. exf6 {[%clk 0:02:45]}  gxf6 {[%clk 0:02:53]} 14. Bf4 {[%clk 0:02:44]}  Rg8 {[%clk 0:02:52]} 15. Rh4 {[%clk 0:02:37]}  O-O-O {[%clk 0:02:50]} 16. Nbd2 {[%clk 0:02:36]}  Kb7 {[%clk 0:02:36]} 17. O-O-O {[%clk 0:02:36]}  Re8 {[%clk 0:02:36]} 18. Re1 {[%clk 0:02:35]}  Nc8 {[%clk 0:02:37]} 19. Qe3 {[%clk 0:02:32]}  Qh7 {[%clk 0:02:24]} 20. Bg3 {[%clk 0:02:23]}  b5 {[%clk 0:02:07]} 21. Re2 {[%clk 0:02:04]}  a5 {[%clk 0:02:06]} 22. Ne1 {[%clk 0:02:04]}  Nb6 {[%clk 0:01:56]} 23. Nc2 {[%clk 0:02:02]}  b4 {[%clk 0:01:55]} 24. cxb4 {[%clk 0:02:02]}  axb4 {[%clk 0:01:55]} 25. Qf4 {[%clk 0:01:55]}  bxa3 {[%clk 0:01:05]} 26. bxa3 {[%clk 0:01:51]}  c3 {[%clk 0:01:04]} 27. Nb3 {[%clk 0:01:44]}  Qd3 {[%clk 0:01:04]} 28. Qc7+ {[%clk 0:01:24]}  Ka6 {[%clk 0:01:03]} 29. Qxc6 {[%clk 0:00:40]}  Qxe2 {[%clk 0:00:56]} 30. Rh1 {[%clk 0:00:35]}  Qb5 {[%clk 0:00:56]} 31. Qxb5+ {[%clk 0:00:32]}  Kxb5 {[%clk 0:00:56]} 32. f3 {[%clk 0:00:30]}  Nc4 {[%clk 0:00:56]} 33. Be1 {[%clk 0:00:26]}  Nxa3 {[%clk 0:00:42]} 34. Bxc3 {[%clk 0:00:24]}  Rc8 {[%clk 0:00:41]} 35. Nxa3+ {[%clk 0:00:18]}  Bxa3+ {[%clk 0:00:39]} 36. Kd2 {[%clk 0:00:19]}  Bb4 {[%clk 0:00:21]} 37. Bxb4 {[%clk 0:00:18]}  Kxb4 {[%clk 0:00:22]} 38. Rb1 {[%clk 0:00:18]}  Kc4 {[%clk 0:00:22]} 39. Nc5 {[%clk 0:00:15]}  e5 {[%clk 0:00:20]} 40. Ne6 {[%clk 0:00:14]}  exd4 {[%clk 0:00:18]} 41. Nf4 {[%clk 0:00:14]}  Ra8 {[%clk 0:00:16]} 42. Rc1+ {[%clk 0:00:12]}  Kb5 {[%clk 0:00:16]} 43. Nxd5 {[%clk 0:00:12]}  Ra3 {[%clk 0:00:17]} 44. Rb1+ {[%clk 0:00:11]}  Kc5 {[%clk 0:00:16]} 45. Nxf6 {[%clk 0:00:11]}  Rga8 {[%clk 0:00:15]} 46. Ne4+ {[%clk 0:00:11]}  Kd5 {[%clk 0:00:14]} 47. Rb5+ {[%clk 0:00:11]}  Ke6 {[%clk 0:00:15]} 48. g5 {[%clk 0:00:11]}  Rxf3 {[%clk 0:00:13]} 49. gxh6 {[%clk 0:00:11]}  Ra2+ {[%clk 0:00:12]} 50. Ke1 {[%clk 0:00:11]}  Re3+ {[%clk 0:00:12]} 51. Kd1 {[%clk 0:00:10]}  Rxe4 {[%clk 0:00:12]} 52. h7 {[%clk 0:00:11]}  Ra8 {[%clk 0:00:12]} 53. Rg5 {[%clk 0:00:10]}  Rh8 {[%clk 0:00:12]} 54. Rg7 {[%clk 0:00:10]}  Rh4 {[%clk 0:00:13]} 55. h6 {[%clk 0:00:11]}  Rxh6 {[%clk 0:00:12]} 56. Kd2 {[%clk 0:00:10]}  R8xh7 {[%clk 0:00:12]} 0-1


[Site "https://www.chess.com"]

[Event "Titled Tuesday Blitz July 4 Early 2023"]
[White "Mekhitarian, Krikor Sevag"]
[Black "Materia, Marco"]
[WhiteFideId "2107660"]
[BlackFideId "45150451"]
[WhiteElo "2789"]
[BlackElo "2637"]
[Result "1-0"]
[Round "9"]
[TimeControl "180+2"]
[Date "2023.07.04"]
[WhiteClock "0:00:24"]
[BlackClock "0:01:09"]
[Board "31"]

1. Nf3 {[%clk 0:03:00]}  d5 {[%clk 0:02:59]} 2. c4 {[%clk 0:03:00]}  d4 {[%clk 0:02:59]} 3. b4 {[%clk 0:02:59]}  c5 {[%clk 0:02:57]} 4. Bb2 {[%clk 0:02:58]}  Nf6 {[%clk 0:02:53]} 5. g3 {[%clk 0:02:58]}  Nc6 {[%clk 0:02:49]} 6. b5 {[%clk 0:02:53]}  Nb8 {[%clk 0:02:50]} 7. e3 {[%clk 0:02:50]}  dxe3 {[%clk 0:02:49]} 8. fxe3 {[%clk 0:02:50]}  Nbd7 {[%clk 0:02:48]} 9. Bg2 {[%clk 0:02:50]}  g6 {[%clk 0:02:48]} 10. O-O {[%clk 0:02:49]}  Bg7 {[%clk 0:02:48]} 11. d3 {[%clk 0:02:39]}  O-O {[%clk 0:02:47]} 12. Qe2 {[%clk 0:02:40]}  Rb8 {[%clk 0:02:43]} 13. Nbd2 {[%clk 0:02:39]}  b6 {[%clk 0:02:43]} 14. a4 {[%clk 0:02:27]}  Bb7 {[%clk 0:02:43]} 15. a5 {[%clk 0:02:25]}  Qc7 {[%clk 0:02:37]} 16. a6 {[%clk 0:02:26]}  Ba8 {[%clk 0:02:37]} 17. Ng5 {[%clk 0:02:23]}  Bxg2 {[%clk 0:02:36]} 18. Qxg2 {[%clk 0:02:24]}  Rbd8 {[%clk 0:02:34]} 19. Rad1 {[%clk 0:02:21]}  Ne5 {[%clk 0:02:31]} 20. Bxe5 {[%clk 0:01:44]}  Qxe5 {[%clk 0:02:30]} 21. Nde4 {[%clk 0:01:45]}  Nxe4 {[%clk 0:02:28]} 22. Nxe4 {[%clk 0:01:46]}  f5 {[%clk 0:02:27]} 23. Nf2 {[%clk 0:01:47]}  Qxe3 {[%clk 0:02:26]} 24. Rfe1 {[%clk 0:01:46]}  Qd4 {[%clk 0:02:24]} 25. Rxe7 {[%clk 0:01:42]}  Rd7 {[%clk 0:02:19]} 26. Rde1 {[%clk 0:01:32]}  Bf6 {[%clk 0:02:12]} 27. R7e6 {[%clk 0:01:16]}  Rdf7 {[%clk 0:01:55]} 28. Qc6 {[%clk 0:01:11]}  Qb2 {[%clk 0:01:52]} 29. R6e2 {[%clk 0:01:04]}  Qc3 {[%clk 0:01:49]} 30. Kg2 {[%clk 0:00:58]}  Bd4 {[%clk 0:01:49]} 31. Nh3 {[%clk 0:00:55]}  Qxd3 {[%clk 0:01:43]} 32. Qd5 {[%clk 0:00:56]}  f4 {[%clk 0:01:41]} 33. Nxf4 {[%clk 0:00:54]}  Qf5 {[%clk 0:01:41]} 34. Qxf5 {[%clk 0:00:37]}  Rxf5 {[%clk 0:01:41]} 35. h4 {[%clk 0:00:37]}  g5 {[%clk 0:01:40]} 36. hxg5 {[%clk 0:00:37]}  R5f7 {[%clk 0:01:28]} 37. Re7 {[%clk 0:00:31]}  Rxe7 {[%clk 0:01:27]} 38. Rxe7 {[%clk 0:00:31]}  Ra8 {[%clk 0:01:20]} 39. Kf3 {[%clk 0:00:30]}  Bg7 {[%clk 0:01:17]} 40. Kg4 {[%clk 0:00:29]}  Bf8 {[%clk 0:01:17]} 41. Rb7 {[%clk 0:00:29]}  Bd6 {[%clk 0:01:16]} 42. Nd5 {[%clk 0:00:26]}  Be5 {[%clk 0:01:16]} 43. Nf6+ {[%clk 0:00:25]}  Bxf6 {[%clk 0:01:16]} 44. gxf6 {[%clk 0:00:25]}  Rf8 {[%clk 0:01:15]} 45. Kg5 {[%clk 0:00:25]}  Rf7 {[%clk 0:01:15]} 46. Rxf7 {[%clk 0:00:23]}  Kxf7 {[%clk 0:01:15]} 47. Kf5 {[%clk 0:00:24]}  Kf8 {[%clk 0:01:14]} 48. Ke6 {[%clk 0:00:24]}  Ke8 {[%clk 0:01:13]} 49. g4 {[%clk 0:00:25]}  Kf8 {[%clk 0:01:12]} 50. g5 {[%clk 0:00:22]}  Ke8 {[%clk 0:01:08]} 51. f7+ {[%clk 0:00:23]}  Kf8 {[%clk 0:01:09]} 52. Kf6 {[%clk 0:00:23]}  h6 {[%clk 0:01:09]} 53. g6 {[%clk 0:00:23]}  h5 {[%clk 0:01:09]} 54. g7# {[%clk 0:00:24]} 1-0


[Site "https://www.chess.com"]

[Event "Titled Tuesday Blitz July 4 Early 2023"]
[White "Madaminov, Mukhiddin"]
[Black "Leebit02"]
[WhiteFideId "14210703"]
[WhiteElo "2998"]
[BlackElo "2577"]
[Result "1-0"]
[Round "9"]
[TimeControl "180+2"]
[Date "2023.07.04"]
[WhiteClock "0:01:15"]
[BlackClock "0:00:00"]
[Board "35"]

1. e4 {[%clk 0:03:00]}  c5 {[%clk 0:02:59]} 2. Nf3 {[%clk 0:03:01]}  e6 {[%clk 0:02:59]} 3. d4 {[%clk 0:03:01]}  cxd4 {[%clk 0:02:59]} 4. Nxd4 {[%clk 0:03:01]}  Nc6 {[%clk 0:03:00]} 5. Nc3 {[%clk 0:03:02]}  Nf6 {[%clk 0:02:59]} 6. Ndb5 {[%clk 0:03:01]}  d6 {[%clk 0:02:57]} 7. Bf4 {[%clk 0:03:01]}  e5 {[%clk 0:02:56]} 8. Bg5 {[%clk 0:03:02]}  a6 {[%clk 0:02:57]} 9. Na3 {[%clk 0:03:02]}  b5 {[%clk 0:02:57]} 10. Nd5 {[%clk 0:03:03]}  Be7 {[%clk 0:02:56]} 11. Bxf6 {[%clk 0:03:03]}  Bxf6 {[%clk 0:02:57]} 12. c3 {[%clk 0:03:04]}  O-O {[%clk 0:02:53]} 13. Nc2 {[%clk 0:03:02]}  Rb8 {[%clk 0:02:54]} 14. Nce3 {[%clk 0:02:47]}  Be6 {[%clk 0:02:50]} 15. g3 {[%clk 0:02:31]}  Bg5 {[%clk 0:02:48]} 16. Bg2 {[%clk 0:02:27]}  Ne7 {[%clk 0:02:46]} 17. O-O {[%clk 0:02:14]}  Qd7 {[%clk 0:02:43]} 18. Nxe7+ {[%clk 0:02:05]}  Qxe7 {[%clk 0:02:42]} 19. Nf5 {[%clk 0:02:03]}  Bxf5 {[%clk 0:01:35]} 20. exf5 {[%clk 0:02:04]}  Qd7 {[%clk 0:01:33]} 21. Be4 {[%clk 0:01:59]}  a5 {[%clk 0:01:29]} 22. Qf3 {[%clk 0:01:53]}  Bd8 {[%clk 0:01:23]} 23. Rad1 {[%clk 0:01:50]}  b4 {[%clk 0:01:12]} 24. c4 {[%clk 0:01:48]}  Qe7 {[%clk 0:01:10]} 25. b3 {[%clk 0:01:43]}  Bb6 {[%clk 0:01:11]} 26. f6 {[%clk 0:01:43]}  Qxf6 {[%clk 0:01:07]} 27. Qxf6 {[%clk 0:01:43]}  gxf6 {[%clk 0:01:08]} 28. Rxd6 {[%clk 0:01:43]}  Kg7 {[%clk 0:01:07]} 29. Rfd1 {[%clk 0:01:42]}  Rfd8 {[%clk 0:01:06]} 30. R1d5 {[%clk 0:01:38]}  Bc7 {[%clk 0:00:30]} 31. Rd7 {[%clk 0:01:37]}  Bb6 {[%clk 0:00:26]} 32. Kg2 {[%clk 0:01:34]}  Kf8 {[%clk 0:00:26]} 33. R5d6 {[%clk 0:01:31]}  Rxd7 {[%clk 0:00:23]} 34. Rxd7 {[%clk 0:01:31]}  Bd8 {[%clk 0:00:19]} 35. Ra7 {[%clk 0:01:31]}  h6 {[%clk 0:00:18]} 36. Bd5 {[%clk 0:01:31]}  Be7 {[%clk 0:00:18]} 37. Rxa5 {[%clk 0:01:31]}  Ke8 {[%clk 0:00:18]} 38. Kf3 {[%clk 0:01:25]}  Rc8 {[%clk 0:00:16]} 39. Ke4 {[%clk 0:01:25]}  Rc7 {[%clk 0:00:13]} 40. Kf5 {[%clk 0:01:25]}  Bd8 {[%clk 0:00:12]} 41. Ra8 {[%clk 0:01:21]}  Ke7 {[%clk 0:00:04]} 42. h4 {[%clk 0:01:21]}  Rd7 {[%clk 0:00:04]} 43. h5 {[%clk 0:01:21]}  Bc7 {[%clk 0:00:04]} 44. Rh8 {[%clk 0:01:17]}  e4 {[%clk 0:00:02]} 45. Kxe4 {[%clk 0:01:15]}  Rd8 {[%clk 0:00:02]} 46. Rh7 {[%clk 0:01:15]}  Rf8 {[%clk 0:00:01]} 47. f4 {[%clk 0:01:15]}  Ke8 {[%clk 0:00:02]} 48. Kf5 {[%clk 0:01:15]}  Rg8 {[%clk 0:00:00]} 49. Bxf7+ {[%clk 0:01:15]} 1-0


[Site "https://www.chess.com"]

[Event "Titled Tuesday Blitz July 4 Early 2023"]
[White "Ibarra Jerez, Jose Carlos"]
[Black "Ovchinnikov, Vsevolod"]
[WhiteFideId "2226332"]
[BlackFideId "24176842"]
[WhiteElo "2887"]
[BlackElo "2600"]
[Result "1-0"]
[Round "9"]
[TimeControl "180+2"]
[Date "2023.07.04"]
[WhiteClock "0:00:52"]
[BlackClock "0:00:00"]
[Board "37"]

1. e4 {[%clk 0:02:59]}  g6 {[%clk 0:02:56]} 2. d4 {[%clk 0:02:59]}  Bg7 {[%clk 0:02:57]} 3. Nf3 {[%clk 0:02:59]}  d6 {[%clk 0:02:57]} 4. Bc4 {[%clk 0:03:00]}  Nf6 {[%clk 0:02:57]} 5. Qe2 {[%clk 0:03:00]}  O-O {[%clk 0:02:58]} 6. e5 {[%clk 0:03:00]}  dxe5 {[%clk 0:02:57]} 7. dxe5 {[%clk 0:03:01]}  Nd5 {[%clk 0:02:57]} 8. h3 {[%clk 0:03:01]}  c6 {[%clk 0:02:55]} 9. O-O {[%clk 0:03:01]}  Be6 {[%clk 0:02:56]} 10. Ng5 {[%clk 0:03:00]}  Nd7 {[%clk 0:02:40]} 11. Nxe6 {[%clk 0:02:59]}  fxe6 {[%clk 0:02:41]} 12. f4 {[%clk 0:02:59]}  b5 {[%clk 0:02:41]} 13. Bb3 {[%clk 0:02:48]}  Nc5 {[%clk 0:02:16]} 14. c4 {[%clk 0:02:44]}  bxc4 {[%clk 0:01:39]} 15. Bxc4 {[%clk 0:02:44]}  Qb6 {[%clk 0:01:35]} 16. Kh2 {[%clk 0:02:33]}  Rf5 {[%clk 0:01:21]} 17. Be3 {[%clk 0:02:07]}  Nxe3 {[%clk 0:00:38]} 18. Qxe3 {[%clk 0:02:06]}  Raf8 {[%clk 0:00:25]} 19. Nc3 {[%clk 0:01:59]}  Kh8 {[%clk 0:00:22]} 20. b3 {[%clk 0:01:48]}  g5 {[%clk 0:00:20]} 21. fxg5 {[%clk 0:01:35]}  Bxe5+ {[%clk 0:00:20]} 22. Kh1 {[%clk 0:01:28]}  Rxf1+ {[%clk 0:00:17]} 23. Rxf1 {[%clk 0:01:22]}  Rxf1+ {[%clk 0:00:17]} 24. Bxf1 {[%clk 0:01:22]}  Nd7 {[%clk 0:00:17]} 25. Qd3 {[%clk 0:01:16]}  Qd4 {[%clk 0:00:18]} 26. Ne4 {[%clk 0:01:04]}  Qxd3 {[%clk 0:00:07]} 27. Bxd3 {[%clk 0:01:05]}  Bf4 {[%clk 0:00:07]} 28. g3 {[%clk 0:01:03]}  Bc1 {[%clk 0:00:04]} 29. Bc4 {[%clk 0:00:59]}  e5 {[%clk 0:00:04]} 30. h4 {[%clk 0:00:57]}  Kg7 {[%clk 0:00:02]} 31. Kg2 {[%clk 0:00:54]}  h6 {[%clk 0:00:01]} 32. gxh6+ {[%clk 0:00:54]}  Kxh6 {[%clk 0:00:02]} 33. g4 {[%clk 0:00:52]}  Kg7 {[%clk 0:00:00]} 34. g5 {[%clk 0:00:52]} 1-0


[Site "https://www.chess.com"]

[Event "Titled Tuesday Blitz July 4 Early 2023"]
[White "Domingo Nunez, Ruben"]
[Black "Kosakowski, Jakub"]
[WhiteFideId "22245570"]
[BlackFideId "1185080"]
[WhiteElo "2613"]
[BlackElo "2827"]
[Result "1-0"]
[Round "9"]
[TimeControl "180+2"]
[Date "2023.07.04"]
[WhiteClock "0:01:27"]
[BlackClock "0:01:40"]
[Board "38"]

1. Nf3 {[%clk 0:02:54]}  Nf6 {[%clk 0:02:56]} 2. g3 {[%clk 0:02:54]}  g6 {[%clk 0:02:55]} 3. Bg2 {[%clk 0:02:54]}  Bg7 {[%clk 0:02:56]} 4. d4 {[%clk 0:02:55]}  O-O {[%clk 0:02:56]} 5. O-O {[%clk 0:02:55]}  d5 {[%clk 0:02:56]} 6. Nc3 {[%clk 0:02:54]}  Bf5 {[%clk 0:02:51]} 7. Nh4 {[%clk 0:02:53]}  Bc8 {[%clk 0:02:50]} 8. Nf3 {[%clk 0:02:53]}  Bf5 {[%clk 0:02:46]} 9. Nh4 {[%clk 0:02:53]}  Bg4 {[%clk 0:02:47]} 10. h3 {[%clk 0:02:53]}  Be6 {[%clk 0:02:47]} 11. Nf3 {[%clk 0:02:53]}  c5 {[%clk 0:02:46]} 12. dxc5 {[%clk 0:02:53]}  Nbd7 {[%clk 0:02:46]} 13. Be3 {[%clk 0:02:52]}  Rc8 {[%clk 0:02:45]} 14. b4 {[%clk 0:02:52]}  Ne4 {[%clk 0:02:45]} 15. Nxe4 {[%clk 0:02:51]}  Bxa1 {[%clk 0:02:45]} 16. Qxa1 {[%clk 0:02:52]}  dxe4 {[%clk 0:02:46]} 17. Ng5 {[%clk 0:02:52]}  Nf6 {[%clk 0:02:45]} 18. Nxe4 {[%clk 0:02:31]}  Nxe4 {[%clk 0:02:44]} 19. Bxe4 {[%clk 0:02:32]}  Bd5 {[%clk 0:02:09]} 20. Bh6 {[%clk 0:02:09]}  f6 {[%clk 0:02:08]} 21. Bxd5+ {[%clk 0:02:09]}  Qxd5 {[%clk 0:02:08]} 22. Bxf8 {[%clk 0:02:09]}  Kxf8 {[%clk 0:02:08]} 23. Qc3 {[%clk 0:01:43]}  b6 {[%clk 0:01:59]} 24. Qd3 {[%clk 0:01:43]}  Qxa2 {[%clk 0:01:54]} 25. Qd7 {[%clk 0:01:37]}  Re8 {[%clk 0:01:48]} 26. c6 {[%clk 0:01:30]}  Qxc2 {[%clk 0:01:48]} 27. c7 {[%clk 0:01:31]}  Qf5 {[%clk 0:01:42]} 28. Qxf5 {[%clk 0:01:26]}  gxf5 {[%clk 0:01:40]} 29. Rd1 {[%clk 0:01:27]} 1-0


[Site "https://www.chess.com"]

[Event "Titled Tuesday Blitz July 4 Early 2023"]
[White "Mikhailovsky, Vladimir"]
[Black "Nefedov, Sergey"]
[WhiteFideId "34105414"]
[BlackFideId "24113417"]
[WhiteElo "2807"]
[BlackElo "2587"]
[Result "0-1"]
[Round "9"]
[TimeControl "180+2"]
[Date "2023.07.04"]
[WhiteClock "0:00:03"]
[BlackClock "0:00:07"]
[Board "40"]

1. e4 {[%clk 0:03:00]}  d5 {[%clk 0:02:59]} 2. Nc3 {[%clk 0:02:55]}  dxe4 {[%clk 0:02:58]} 3. Nxe4 {[%clk 0:02:56]}  Nf6 {[%clk 0:02:59]} 4. Bd3 {[%clk 0:02:54]}  Nc6 {[%clk 0:02:54]} 5. Nf3 {[%clk 0:02:54]}  e5 {[%clk 0:02:52]} 6. O-O {[%clk 0:02:54]}  Be7 {[%clk 0:02:51]} 7. Re1 {[%clk 0:02:54]}  O-O {[%clk 0:02:51]} 8. Nxf6+ {[%clk 0:02:51]}  Bxf6 {[%clk 0:02:51]} 9. Be4 {[%clk 0:02:52]}  Ne7 {[%clk 0:02:30]} 10. b3 {[%clk 0:02:40]}  Bg4 {[%clk 0:02:24]} 11. Bxb7 {[%clk 0:02:38]}  Rb8 {[%clk 0:02:23]} 12. Be4 {[%clk 0:02:38]}  Nd5 {[%clk 0:01:54]} 13. Bb2 {[%clk 0:02:34]}  Re8 {[%clk 0:01:53]} 14. h3 {[%clk 0:02:30]}  Bh5 {[%clk 0:01:53]} 15. d4 {[%clk 0:02:17]}  exd4 {[%clk 0:01:44]} 16. Bxd4 {[%clk 0:02:18]}  Nc3 {[%clk 0:01:44]} 17. Qd3 {[%clk 0:01:46]}  Nxe4 {[%clk 0:01:29]} 18. Rxe4 {[%clk 0:00:52]}  Rxe4 {[%clk 0:01:28]} 19. Qxe4 {[%clk 0:00:11]}  Bxf3 {[%clk 0:01:26]} 20. Qxf3 {[%clk 0:00:12]}  Qxd4 {[%clk 0:01:17]} 21. Rd1 {[%clk 0:00:12]}  Qe5 {[%clk 0:01:10]} 22. g3 {[%clk 0:00:11]}  Qe6 {[%clk 0:00:57]} 23. Rd5 {[%clk 0:00:10]}  Qxh3 {[%clk 0:00:50]} 24. Rh5 {[%clk 0:00:05]}  Qe6 {[%clk 0:00:49]} 25. Qd3 {[%clk 0:00:04]}  g6 {[%clk 0:00:48]} 26. Rd5 {[%clk 0:00:05]}  Re8 {[%clk 0:00:47]} 27. Rd7 {[%clk 0:00:05]}  Qc6 {[%clk 0:00:43]} 28. Qd2 {[%clk 0:00:03]}  Re1+ {[%clk 0:00:41]} 29. Qxe1 {[%clk 0:00:03]}  Qxd7 {[%clk 0:00:42]} 30. Qa5 {[%clk 0:00:04]}  Bd4 {[%clk 0:00:41]} 31. Qd2 {[%clk 0:00:03]}  Qd6 {[%clk 0:00:39]} 32. Kg2 {[%clk 0:00:03]}  Qd5+ {[%clk 0:00:37]} 33. Kg1 {[%clk 0:00:04]}  Qe5 {[%clk 0:00:35]} 34. Kg2 {[%clk 0:00:03]}  Qe4+ {[%clk 0:00:35]} 35. Kg1 {[%clk 0:00:03]}  Kg7 {[%clk 0:00:28]} 36. c3 {[%clk 0:00:04]}  Bb6 {[%clk 0:00:27]} 37. b4 {[%clk 0:00:03]}  Qf3 {[%clk 0:00:24]} 38. Kf1 {[%clk 0:00:02]}  h5 {[%clk 0:00:20]} 39. a4 {[%clk 0:00:02]}  a5 {[%clk 0:00:19]} 40. bxa5 {[%clk 0:00:01]}  Bxa5 {[%clk 0:00:19]} 41. Qd4+ {[%clk 0:00:02]}  Qf6 {[%clk 0:00:20]} 42. Qc5 {[%clk 0:00:02]}  Qxc3 {[%clk 0:00:18]} 43. Qb5 {[%clk 0:00:03]}  c5 {[%clk 0:00:17]} 44. Qd7 {[%clk 0:00:02]}  Bb4 {[%clk 0:00:17]} 45. Kg2 {[%clk 0:00:01]}  c4 {[%clk 0:00:17]} 46. a5 {[%clk 0:00:01]}  Bxa5 {[%clk 0:00:17]} 47. g4 {[%clk 0:00:02]}  hxg4 {[%clk 0:00:16]} 48. f3 {[%clk 0:00:02]}  Qxf3+ {[%clk 0:00:15]} 49. Kh2 {[%clk 0:00:03]}  g3+ {[%clk 0:00:14]} 50. Kh3 {[%clk 0:00:02]}  g2+ {[%clk 0:00:13]} 51. Kh2 {[%clk 0:00:02]}  g1=Q+ {[%clk 0:00:09]} 52. Kxg1 {[%clk 0:00:03]}  Bb6+ {[%clk 0:00:09]} 53. Kh2 {[%clk 0:00:03]}  Qf2+ {[%clk 0:00:08]} 54. Kh3 {[%clk 0:00:04]}  Qf5+ {[%clk 0:00:09]} 55. Kh4 {[%clk 0:00:03]}  Bf2# {[%clk 0:00:07]} 0-1


[Site "https://www.chess.com"]

[Event "Titled Tuesday Blitz July 4 Early 2023"]
[White "Tristan, Leonardo"]
[Black "Lana Rodriguez, David"]
[WhiteFideId "113816"]
[BlackFideId "2270803"]
[WhiteElo "2789"]
[BlackElo "2583"]
[Result "0-1"]
[Round "9"]
[TimeControl "180+2"]
[Date "2023.07.04"]
[WhiteClock "0:00:08"]
[BlackClock "0:00:14"]
[Board "41"]

1. d4 {[%clk 0:03:00]}  e5 {[%clk 0:02:58]} 2. dxe5 {[%clk 0:03:00]}  d6 {[%clk 0:02:58]} 3. Nf3 {[%clk 0:03:00]}  Nc6 {[%clk 0:02:59]} 4. e4 {[%clk 0:03:00]}  Bg4 {[%clk 0:02:58]} 5. Bb5 {[%clk 0:02:56]}  dxe5 {[%clk 0:02:53]} 6. Qxd8+ {[%clk 0:02:49]}  Rxd8 {[%clk 0:02:54]} 7. Nbd2 {[%clk 0:02:50]}  f6 {[%clk 0:02:52]} 8. Bxc6+ {[%clk 0:02:45]}  bxc6 {[%clk 0:02:52]} 9. h3 {[%clk 0:02:44]}  Be6 {[%clk 0:02:51]} 10. O-O {[%clk 0:02:23]}  Bc5 {[%clk 0:02:51]} 11. Re1 {[%clk 0:02:17]}  Ne7 {[%clk 0:02:48]} 12. Nb3 {[%clk 0:02:18]}  Bb6 {[%clk 0:02:48]} 13. Be3 {[%clk 0:02:18]}  Kf7 {[%clk 0:02:44]} 14. Nc5 {[%clk 0:02:07]}  Rd6 {[%clk 0:02:36]} 15. a4 {[%clk 0:01:55]}  Rb8 {[%clk 0:02:29]} 16. a5 {[%clk 0:01:07]}  Bxc5 {[%clk 0:02:28]} 17. Bxc5 {[%clk 0:01:08]}  Rdd8 {[%clk 0:02:26]} 18. b3 {[%clk 0:01:04]}  a6 {[%clk 0:02:25]} 19. Red1 {[%clk 0:01:04]}  Ng6 {[%clk 0:02:15]} 20. Kh2 {[%clk 0:00:55]}  Nf4 {[%clk 0:02:13]} 21. Ng1 {[%clk 0:00:55]}  Bd7 {[%clk 0:01:56]} 22. g3 {[%clk 0:00:54]}  Ne6 {[%clk 0:01:56]} 23. Ba7 {[%clk 0:00:53]}  Ra8 {[%clk 0:01:37]} 24. Be3 {[%clk 0:00:53]}  Be8 {[%clk 0:01:34]} 25. Ne2 {[%clk 0:00:53]}  Rxd1 {[%clk 0:01:33]} 26. Rxd1 {[%clk 0:00:53]}  Rd8 {[%clk 0:01:34]} 27. Ra1 {[%clk 0:00:53]}  Ke7 {[%clk 0:01:26]} 28. Kg2 {[%clk 0:00:52]}  Bg6 {[%clk 0:01:24]} 29. f3 {[%clk 0:00:52]}  f5 {[%clk 0:01:21]} 30. Nc3 {[%clk 0:00:45]}  fxe4 {[%clk 0:01:20]} 31. Nxe4 {[%clk 0:00:46]}  Bxe4 {[%clk 0:01:16]} 32. fxe4 {[%clk 0:00:46]}  h6 {[%clk 0:01:14]} 33. Ra4 {[%clk 0:00:44]}  c5 {[%clk 0:01:10]} 34. Rc4 {[%clk 0:00:42]}  Kd6 {[%clk 0:01:07]} 35. c3 {[%clk 0:00:35]}  Rb8 {[%clk 0:01:07]} 36. b4 {[%clk 0:00:36]}  cxb4 {[%clk 0:01:05]} 37. cxb4 {[%clk 0:00:36]}  Rb5 {[%clk 0:01:03]} 38. Kf3 {[%clk 0:00:34]}  c5 {[%clk 0:01:03]} 39. bxc5+ {[%clk 0:00:34]}  Nxc5 {[%clk 0:01:02]} 40. Bd2 {[%clk 0:00:34]}  Ne6 {[%clk 0:01:00]} 41. Bb4+ {[%clk 0:00:34]}  Kd7 {[%clk 0:01:00]} 42. Kg4 {[%clk 0:00:29]}  g6 {[%clk 0:00:45]} 43. Bc3 {[%clk 0:00:24]}  Rc5 {[%clk 0:00:36]} 44. Rxc5 {[%clk 0:00:18]}  Nxc5 {[%clk 0:00:37]} 45. Bxe5 {[%clk 0:00:09]}  Nxe4 {[%clk 0:00:36]} 46. Kf4 {[%clk 0:00:08]}  Nf2 {[%clk 0:00:30]} 47. Bd4 {[%clk 0:00:03]}  Nd3+ {[%clk 0:00:27]} 48. Ke4 {[%clk 0:00:03]}  Nb4 {[%clk 0:00:24]} 49. Bc5 {[%clk 0:00:03]}  Nc6 {[%clk 0:00:23]} 50. Bf8 {[%clk 0:00:03]}  Nxa5 {[%clk 0:00:20]} 51. Bxh6 {[%clk 0:00:03]}  Ke6 {[%clk 0:00:21]} 52. Be3 {[%clk 0:00:02]}  Nb7 {[%clk 0:00:20]} 53. Bd4 {[%clk 0:00:02]}  Nd6+ {[%clk 0:00:20]} 54. Kd3 {[%clk 0:00:02]}  Kd5 {[%clk 0:00:20]} 55. Be3 {[%clk 0:00:02]}  Nf5 {[%clk 0:00:18]} 56. Bf2 {[%clk 0:00:03]}  Nd6 {[%clk 0:00:17]} 57. g4 {[%clk 0:00:03]}  Ne4 {[%clk 0:00:17]} 58. Be1 {[%clk 0:00:03]}  Nc5+ {[%clk 0:00:17]} 59. Ke3 {[%clk 0:00:04]}  Ke5 {[%clk 0:00:14]} 60. Bg3+ {[%clk 0:00:04]}  Kd5 {[%clk 0:00:13]} 61. Kf4 {[%clk 0:00:04]}  a5 {[%clk 0:00:12]} 62. Kg5 {[%clk 0:00:03]}  Ne4+ {[%clk 0:00:12]} 63. Kxg6 {[%clk 0:00:03]}  Nxg3 {[%clk 0:00:13]} 64. h4 {[%clk 0:00:04]}  a4 {[%clk 0:00:12]} 65. h5 {[%clk 0:00:05]}  a3 {[%clk 0:00:12]} 66. h6 {[%clk 0:00:05]}  a2 {[%clk 0:00:13]} 67. g5 {[%clk 0:00:06]}  a1=Q {[%clk 0:00:13]} 68. Kh7 {[%clk 0:00:07]}  Qa7+ {[%clk 0:00:13]} 69. Kh8 {[%clk 0:00:07]}  Qb8+ {[%clk 0:00:12]} 70. Kh7 {[%clk 0:00:07]}  Qc7+ {[%clk 0:00:13]} 71. Kh8 {[%clk 0:00:07]}  Qd8+ {[%clk 0:00:13]} 72. Kh7 {[%clk 0:00:08]}  Qxg5 {[%clk 0:00:13]} 73. Kh8 {[%clk 0:00:08]}  Nf5 {[%clk 0:00:13]} 74. h7 {[%clk 0:00:08]}  Qg7# {[%clk 0:00:14]} 0-1


[Site "https://www.chess.com"]